[Event "Titled Tuesday Blitz February 28 Early 2023"]
[White "Czopor, Maciej"]
[Black "Da Silva Borges, Rodrigo"]
[WhiteFideId "21805431"]
[BlackFideId "2115778"]
[WhiteElo "2324"]
[BlackElo "2099"]
[Result "1-0"]
[Round "01"]
[TimeControl "180+2"]
[Date "2023.02.28"]
[WhiteClock "0:01:50"]
[BlackClock "0:00:51"]

1. c4 {[%clk 0:02:59]}  e5 {[%clk 0:02:59]} 2. Nc3 {[%clk 0:02:59]}  Nc6 {[%clk 0:02:58]} 3. e3 {[%clk 0:03:00]}  Nf6 {[%clk 0:02:57]} 4. a3 {[%clk 0:02:54]}  d5 {[%clk 0:02:51]} 5. cxd5 {[%clk 0:02:55]}  Nxd5 {[%clk 0:02:51]} 6. Qc2 {[%clk 0:02:56]}  Be7 {[%clk 0:02:50]} 7. Nf3 {[%clk 0:02:56]}  O-O {[%clk 0:02:47]} 8. Be2 {[%clk 0:02:56]}  Be6 {[%clk 0:02:42]} 9. O-O {[%clk 0:02:56]}  f6 {[%clk 0:02:40]} 10. b4 {[%clk 0:02:55]}  Nxc3 {[%clk 0:02:32]} 11. Qxc3 {[%clk 0:02:55]}  Qd7 {[%clk 0:02:30]} 12. Bb2 {[%clk 0:02:55]}  a6 {[%clk 0:02:09]} 13. d3 {[%clk 0:02:54]}  Rfd8 {[%clk 0:02:03]} 14. Rac1 {[%clk 0:02:53]}  Rac8 {[%clk 0:02:02]} 15. Rfd1 {[%clk 0:02:53]}  Bf8 {[%clk 0:02:00]} 16. Nd2 {[%clk 0:02:53]}  Qf7 {[%clk 0:02:00]} 17. Ne4 {[%clk 0:02:53]}  Ne7 {[%clk 0:01:49]} 18. Nc5 {[%clk 0:02:53]}  Nd5 {[%clk 0:01:49]} 19. Qc2 {[%clk 0:02:52]}  Bxc5 {[%clk 0:01:49]} 20. Qxc5 {[%clk 0:02:52]}  c6 {[%clk 0:01:49]} 21. Bf3 {[%clk 0:02:48]}  Ne7 {[%clk 0:01:41]} 22. d4 {[%clk 0:02:44]}  exd4 {[%clk 0:01:38]} 23. Rxd4 {[%clk 0:02:45]}  Rxd4 {[%clk 0:01:37]} 24. Bxd4 {[%clk 0:02:44]}  Bd5 {[%clk 0:01:32]} 25. Be2 {[%clk 0:02:36]}  Qg6 {[%clk 0:01:30]} 26. Bf1 {[%clk 0:02:36]}  Nf5 {[%clk 0:01:27]} 27. Qxd5+ {[%clk 0:02:29]}  cxd5 {[%clk 0:01:26]} 28. Rxc8+ {[%clk 0:02:30]}  Kf7 {[%clk 0:01:27]} 29. Rc7+ {[%clk 0:02:29]}  Ke6 {[%clk 0:01:21]} 30. Bc5 {[%clk 0:02:18]}  Nd6 {[%clk 0:01:16]} 31. Bxd6 {[%clk 0:02:01]}  Kxd6 {[%clk 0:01:17]} 32. Rxb7 {[%clk 0:02:02]}  a5 {[%clk 0:00:56]} 33. bxa5 {[%clk 0:01:56]}  Qc2 {[%clk 0:00:53]} 34. a6 {[%clk 0:01:56]}  Qa4 {[%clk 0:00:51]} 35. a7 {[%clk 0:01:50]}  Qxa3 {[%clk 0:00:51]} 36. Rb6+ {[%clk 0:01:50]} 1-0


[Site "https://www.chess.com"]

[Event "Titled Tuesday Blitz February 28 Early 2023"]
[White "Einarsson, Halldor Gretar"]
[Black "Odegov, Artem"]
[WhiteFideId "2300150"]
[BlackFideId "34183644"]
[WhiteElo "2126"]
[BlackElo "2300"]
[Result "0-1"]
[Round "01"]
[TimeControl "180+2"]
[Date "2023.02.28"]
[WhiteClock "0:00:03"]
[BlackClock "0:01:51"]

1. d4 {[%clk 0:02:51]}  Nf6 {[%clk 0:02:58]} 2. c4 {[%clk 0:02:50]}  e6 {[%clk 0:02:56]} 3. g3 {[%clk 0:02:50]}  d5 {[%clk 0:02:55]} 4. Nf3 {[%clk 0:02:48]}  c5 {[%clk 0:02:54]} 5. cxd5 {[%clk 0:02:44]}  exd5 {[%clk 0:02:55]} 6. Bg2 {[%clk 0:02:44]}  Nc6 {[%clk 0:02:55]} 7. O-O {[%clk 0:02:42]}  Be7 {[%clk 0:02:55]} 8. Nc3 {[%clk 0:02:41]}  O-O {[%clk 0:02:51]} 9. Bg5 {[%clk 0:02:40]}  c4 {[%clk 0:02:50]} 10. Ne5 {[%clk 0:02:28]}  Be6 {[%clk 0:02:49]} 11. Nxc6 {[%clk 0:01:31]}  bxc6 {[%clk 0:02:48]} 12. b3 {[%clk 0:01:28]}  cxb3 {[%clk 0:02:26]} 13. axb3 {[%clk 0:01:10]}  a5 {[%clk 0:02:24]} 14. Na4 {[%clk 0:00:58]}  h6 {[%clk 0:02:24]} 15. Bxf6 {[%clk 0:00:54]}  Bxf6 {[%clk 0:02:24]} 16. Rc1 {[%clk 0:00:53]}  Qd6 {[%clk 0:02:22]} 17. Qd3 {[%clk 0:00:45]}  Rab8 {[%clk 0:02:13]} 18. Rc5 {[%clk 0:00:36]}  Rb4 {[%clk 0:02:10]} 19. e3 {[%clk 0:00:27]}  Rfb8 {[%clk 0:02:03]} 20. Rb1 {[%clk 0:00:13]}  g6 {[%clk 0:01:52]} 21. Qc3 {[%clk 0:00:11]}  Rxa4 {[%clk 0:01:50]} 22. Rxc6 {[%clk 0:00:09]}  Qd7 {[%clk 0:01:50]} 23. Rc7 {[%clk 0:00:05]}  Qd8 {[%clk 0:01:50]} 24. bxa4 {[%clk 0:00:03]}  Rxb1+ {[%clk 0:01:51]} 0-1


[Site "https://www.chess.com"]

[Event "Titled Tuesday Blitz February 28 Early 2023"]
[White "Kohler, Aran"]
[Black "Martynov, Pavel"]
[WhiteFideId "1002856"]
[BlackFideId "4101260"]
[WhiteElo "2255"]
[BlackElo "2314"]
[Result "0-1"]
[Round "01"]
[TimeControl "180+2"]
[Date "2023.02.28"]
[WhiteClock "0:00:18"]
[BlackClock "0:00:26"]

1. d4 {[%clk 0:02:58]}  d5 {[%clk 0:02:58]} 2. Nf3 {[%clk 0:02:58]}  e6 {[%clk 0:02:58]} 3. Bf4 {[%clk 0:02:58]}  c5 {[%clk 0:02:58]} 4. c3 {[%clk 0:02:58]}  Nc6 {[%clk 0:02:58]} 5. e3 {[%clk 0:02:58]}  Bd6 {[%clk 0:02:58]} 6. Bg3 {[%clk 0:02:58]}  Nf6 {[%clk 0:02:59]} 7. Nbd2 {[%clk 0:02:59]}  Bxg3 {[%clk 0:02:59]} 8. hxg3 {[%clk 0:02:58]}  Qd6 {[%clk 0:03:00]} 9. Bd3 {[%clk 0:02:55]}  e5 {[%clk 0:02:59]} 10. dxe5 {[%clk 0:02:55]}  Nxe5 {[%clk 0:03:00]} 11. Nxe5 {[%clk 0:02:55]}  Qxe5 {[%clk 0:03:01]} 12. Qc2 {[%clk 0:02:39]}  h6 {[%clk 0:02:58]} 13. O-O-O {[%clk 0:02:35]}  Bd7 {[%clk 0:02:51]} 14. e4 {[%clk 0:02:26]}  O-O-O {[%clk 0:02:25]} 15. f4 {[%clk 0:02:21]}  Qc7 {[%clk 0:02:24]} 16. e5 {[%clk 0:02:19]}  Ng4 {[%clk 0:02:24]} 17. Nf3 {[%clk 0:02:15]}  Ne3 {[%clk 0:02:23]} 18. Qe2 {[%clk 0:02:11]}  Nxd1 {[%clk 0:02:23]} 19. Rxd1 {[%clk 0:02:10]}  Bg4 {[%clk 0:02:17]} 20. Qc2 {[%clk 0:01:59]}  Kb8 {[%clk 0:02:13]} 21. Bf5 {[%clk 0:01:57]}  h5 {[%clk 0:01:40]} 22. Bxg4 {[%clk 0:01:49]}  hxg4 {[%clk 0:01:41]} 23. Nh4 {[%clk 0:01:45]}  g6 {[%clk 0:01:37]} 24. Qe2 {[%clk 0:01:37]}  d4 {[%clk 0:01:36]} 25. c4 {[%clk 0:01:11]}  d3 {[%clk 0:01:07]} 26. Rxd3 {[%clk 0:01:09]}  Rxd3 {[%clk 0:01:06]} 27. Qxd3 {[%clk 0:01:10]}  Rd8 {[%clk 0:01:07]} 28. Qe2 {[%clk 0:01:10]}  Qa5 {[%clk 0:01:05]} 29. a3 {[%clk 0:01:07]}  Qa4 {[%clk 0:01:04]} 30. e6 {[%clk 0:00:49]}  fxe6 {[%clk 0:00:57]} 31. Nxg6 {[%clk 0:00:48]}  Qb3 {[%clk 0:00:53]} 32. Ne5 {[%clk 0:00:39]}  Qxg3 {[%clk 0:00:52]} 33. Qxg4 {[%clk 0:00:32]}  Qe1+ {[%clk 0:00:48]} 34. Kc2 {[%clk 0:00:33]}  Rd2+ {[%clk 0:00:40]} 35. Kb3 {[%clk 0:00:32]}  Qe3+ {[%clk 0:00:33]} 36. Ka2 {[%clk 0:00:30]}  a6 {[%clk 0:00:27]} 37. Qg8+ {[%clk 0:00:29]}  Ka7 {[%clk 0:00:27]} 38. Qd8 {[%clk 0:00:18]}  Rxd8 {[%clk 0:00:26]} 0-1


[Site "https://www.chess.com"]

[Event "Titled Tuesday Blitz February 28 Early 2023"]
[White "Tan, Jun Ying"]
[Black "parintele_chess"]
[WhiteFideId "5710413"]
[WhiteElo "2089"]
[BlackElo "2255"]
[Result "1-0"]
[Round "01"]
[TimeControl "180+2"]
[Date "2023.02.28"]
[WhiteClock "0:02:05"]
[BlackClock "0:02:07"]

1. d4 {[%clk 0:03:00]}  d5 {[%clk 0:02:59]} 2. c4 {[%clk 0:02:59]}  e6 {[%clk 0:03:00]} 3. Nc3 {[%clk 0:02:58]}  a6 {[%clk 0:03:00]} 4. cxd5 {[%clk 0:02:56]}  exd5 {[%clk 0:03:01]} 5. Nf3 {[%clk 0:02:57]}  Nf6 {[%clk 0:03:01]} 6. Bg5 {[%clk 0:02:57]}  Be7 {[%clk 0:03:01]} 7. e3 {[%clk 0:02:56]}  O-O {[%clk 0:02:59]} 8. Bd3 {[%clk 0:02:56]}  c6 {[%clk 0:02:58]} 9. Qc2 {[%clk 0:02:55]}  h6 {[%clk 0:02:58]} 10. Bh4 {[%clk 0:02:50]}  Be6 {[%clk 0:02:55]} 11. O-O {[%clk 0:02:50]}  Nbd7 {[%clk 0:02:55]} 12. Rab1 {[%clk 0:02:43]}  a5 {[%clk 0:02:53]} 13. a3 {[%clk 0:02:41]}  Bg4 {[%clk 0:02:47]} 14. Nd2 {[%clk 0:02:30]}  Re8 {[%clk 0:02:44]} 15. b4 {[%clk 0:02:25]}  axb4 {[%clk 0:02:45]} 16. axb4 {[%clk 0:02:26]}  Nf8 {[%clk 0:02:31]} 17. b5 {[%clk 0:02:20]}  Bd7 {[%clk 0:02:24]} 18. bxc6 {[%clk 0:02:19]}  bxc6 {[%clk 0:02:25]} 19. Na4 {[%clk 0:02:16]}  Ne6 {[%clk 0:02:14]} 20. Rfc1 {[%clk 0:02:13]}  Nh5 {[%clk 0:02:07]} 21. Bxe7 {[%clk 0:02:09]}  Qxe7 {[%clk 0:02:08]} 22. Nb6 {[%clk 0:02:07]}  Ra6 {[%clk 0:02:07]} 23. Bxa6 {[%clk 0:02:05]} 1-0


[Site "https://www.chess.com"]

[Event "Titled Tuesday Blitz February 28 Early 2023"]
[White "Manelyuk, Daniil"]
[Black "Mendez Machado, Andre"]
[WhiteFideId "44173920"]
[BlackFideId "6603793"]
[WhiteElo "2259"]
[BlackElo "1989"]
[Result "1-0"]
[Round "01"]
[TimeControl "180+2"]
[Date "2023.02.28"]
[WhiteClock "0:01:12"]
[BlackClock "0:00:03"]

1. e4 {[%clk 0:02:52]}  e5 {[%clk 0:02:58]} 2. Nf3 {[%clk 0:02:52]}  Nc6 {[%clk 0:02:56]} 3. Bb5 {[%clk 0:02:51]}  a6 {[%clk 0:02:56]} 4. Ba4 {[%clk 0:02:51]}  Nf6 {[%clk 0:02:56]} 5. O-O {[%clk 0:02:51]}  b5 {[%clk 0:02:57]} 6. Bb3 {[%clk 0:02:51]}  Bc5 {[%clk 0:02:58]} 7. Re1 {[%clk 0:02:49]}  d6 {[%clk 0:02:55]} 8. c3 {[%clk 0:02:49]}  Bb6 {[%clk 0:02:55]} 9. a4 {[%clk 0:02:48]}  Rb8 {[%clk 0:02:30]} 10. Na3 {[%clk 0:02:40]}  O-O {[%clk 0:02:19]} 11. d4 {[%clk 0:02:37]}  Bg4 {[%clk 0:02:09]} 12. axb5 {[%clk 0:02:35]}  axb5 {[%clk 0:02:02]} 13. Nxb5 {[%clk 0:02:35]}  Bxf3 {[%clk 0:02:00]} 14. gxf3 {[%clk 0:02:34]}  Nh5 {[%clk 0:01:51]} 15. Kh1 {[%clk 0:02:28]}  Qf6 {[%clk 0:01:37]} 16. Be3 {[%clk 0:02:19]}  exd4 {[%clk 0:01:13]} 17. cxd4 {[%clk 0:02:04]}  Ba5 {[%clk 0:01:12]} 18. Nc3 {[%clk 0:02:04]}  Rxb3 {[%clk 0:00:52]} 19. Qxb3 {[%clk 0:02:05]}  Qxf3+ {[%clk 0:00:52]} 20. Kg1 {[%clk 0:02:05]}  Qg4+ {[%clk 0:00:19]} 21. Kf1 {[%clk 0:02:04]}  Qh3+ {[%clk 0:00:15]} 22. Ke2 {[%clk 0:02:04]}  Qg4+ {[%clk 0:00:15]} 23. Kd2 {[%clk 0:01:54]}  Bxc3+ {[%clk 0:00:13]} 24. bxc3 {[%clk 0:01:53]}  Rb8 {[%clk 0:00:11]} 25. Qc2 {[%clk 0:01:50]}  Nf6 {[%clk 0:00:10]} 26. Qd3 {[%clk 0:01:34]}  Nxe4+ {[%clk 0:00:08]} 27. Kc2 {[%clk 0:01:34]}  Nf6 {[%clk 0:00:07]} 28. Reb1 {[%clk 0:01:32]}  Re8 {[%clk 0:00:06]} 29. Ra6 {[%clk 0:01:26]}  Nd8 {[%clk 0:00:06]} 30. Rb8 {[%clk 0:01:25]}  Nd5 {[%clk 0:00:05]} 31. Raa8 {[%clk 0:01:22]}  Nxe3+ {[%clk 0:00:05]} 32. fxe3 {[%clk 0:01:22]}  Qg2+ {[%clk 0:00:05]} 33. Kb3 {[%clk 0:01:21]}  Qg5 {[%clk 0:00:04]} 34. Qb5 {[%clk 0:01:18]}  Qxb5+ {[%clk 0:00:03]} 35. Rxb5 {[%clk 0:01:19]}  Kf8 {[%clk 0:00:03]} 36. Rbb8 {[%clk 0:01:15]}  Ke7 {[%clk 0:00:04]} 37. Rc8 {[%clk 0:01:16]}  Kd7 {[%clk 0:00:04]} 38. c4 {[%clk 0:01:14]}  g5 {[%clk 0:00:04]} 39. c5 {[%clk 0:01:14]}  h5 {[%clk 0:00:04]} 40. c6+ {[%clk 0:01:13]}  Ke7 {[%clk 0:00:04]} 41. Rxc7+ {[%clk 0:01:13]}  Kf8 {[%clk 0:00:03]} 42. Rcc8 {[%clk 0:01:12]}  Ke7 {[%clk 0:00:03]} 43. c7 {[%clk 0:01:12]} 1-0


[Site "https://www.chess.com"]

[Event "Titled Tuesday Blitz February 28 Early 2023"]
[White "Lauridsen, Jesper Morch"]
[Black "Mamedov, Edgar"]
[WhiteFideId "1401890"]
[BlackFideId "13739980"]
[WhiteElo "2245"]
[BlackElo "2330"]
[Result "0-1"]
[Round "01"]
[TimeControl "180+2"]
[Date "2023.02.28"]
[WhiteClock "0:00:33"]
[BlackClock "0:01:07"]

1. e4 {[%clk 0:02:57]}  c6 {[%clk 0:02:59]} 2. d4 {[%clk 0:02:56]}  d5 {[%clk 0:02:55]} 3. exd5 {[%clk 0:02:57]}  cxd5 {[%clk 0:02:55]} 4. Nf3 {[%clk 0:02:57]}  Nc6 {[%clk 0:02:55]} 5. Bb5 {[%clk 0:02:56]}  e6 {[%clk 0:02:52]} 6. c4 {[%clk 0:02:56]}  Nf6 {[%clk 0:02:48]} 7. cxd5 {[%clk 0:02:54]}  Nxd5 {[%clk 0:02:46]} 8. O-O {[%clk 0:02:53]}  Bd6 {[%clk 0:02:43]} 9. Nc3 {[%clk 0:02:52]}  O-O {[%clk 0:02:42]} 10. Bxc6 {[%clk 0:02:51]}  bxc6 {[%clk 0:02:41]} 11. Ne4 {[%clk 0:02:52]}  Be7 {[%clk 0:02:38]} 12. Qa4 {[%clk 0:02:45]}  Bd7 {[%clk 0:02:34]} 13. Nc5 {[%clk 0:02:41]}  Bxc5 {[%clk 0:02:29]} 14. dxc5 {[%clk 0:02:41]}  Qb8 {[%clk 0:02:24]} 15. Re1 {[%clk 0:02:26]}  f6 {[%clk 0:02:20]} 16. Nd4 {[%clk 0:01:56]}  e5 {[%clk 0:02:16]} 17. Nc2 {[%clk 0:01:57]}  a5 {[%clk 0:02:10]} 18. Ne3 {[%clk 0:01:56]}  Qb4 {[%clk 0:02:03]} 19. Qxb4 {[%clk 0:01:44]}  axb4 {[%clk 0:02:01]} 20. Nc4 {[%clk 0:01:40]}  Be6 {[%clk 0:01:54]} 21. Nb6 {[%clk 0:01:33]}  Ra5 {[%clk 0:01:50]} 22. Nxd5 {[%clk 0:01:28]}  Bxd5 {[%clk 0:01:48]} 23. Bd2 {[%clk 0:01:28]}  Bxa2 {[%clk 0:01:43]} 24. Bxb4 {[%clk 0:01:25]}  Ra4 {[%clk 0:01:42]} 25. Bc3 {[%clk 0:01:20]}  Rfa8 {[%clk 0:01:39]} 26. h3 {[%clk 0:01:13]}  Bd5 {[%clk 0:01:35]} 27. Rxa4 {[%clk 0:01:10]}  Rxa4 {[%clk 0:01:36]} 28. b4 {[%clk 0:01:08]}  Ra3 {[%clk 0:01:34]} 29. Rc1 {[%clk 0:01:05]}  Kf7 {[%clk 0:01:33]} 30. f3 {[%clk 0:00:59]}  Ke6 {[%clk 0:01:30]} 31. Kf2 {[%clk 0:00:58]}  Ra2+ {[%clk 0:01:27]} 32. Kg3 {[%clk 0:00:58]}  g5 {[%clk 0:01:18]} 33. Ra1 {[%clk 0:00:56]}  Rc2 {[%clk 0:01:15]} 34. Be1 {[%clk 0:00:51]}  h5 {[%clk 0:01:13]} 35. Rd1 {[%clk 0:00:36]}  h4+ {[%clk 0:01:09]} 36. Kg4 {[%clk 0:00:33]}  Rxg2+ {[%clk 0:01:07]} 0-1


[Site "https://www.chess.com"]

[Event "Titled Tuesday Blitz February 28 Early 2023"]
[White "Simonovic, Miroslav"]
[Black "Pinheiro, Iung Alicio de O."]
[WhiteFideId "919152"]
[BlackFideId "2104350"]
[WhiteElo "2057"]
[BlackElo "2283"]
[Result "0-1"]
[Round "01"]
[TimeControl "180+2"]
[Date "2023.02.28"]
[WhiteClock "0:00:06"]
[BlackClock "0:00:13"]

1. d4 {[%clk 0:02:59]}  Nf6 {[%clk 0:02:59]} 2. Bg5 {[%clk 0:02:58]}  Ne4 {[%clk 0:02:56]} 3. Bf4 {[%clk 0:02:58]}  Nc6 {[%clk 0:02:55]} 4. e3 {[%clk 0:02:58]}  g5 {[%clk 0:02:49]} 5. Bg3 {[%clk 0:02:53]}  h5 {[%clk 0:02:48]} 6. f3 {[%clk 0:02:47]}  h4 {[%clk 0:02:46]} 7. Be5 {[%clk 0:02:40]}  Nxe5 {[%clk 0:02:38]} 8. dxe5 {[%clk 0:02:41]}  Nc5 {[%clk 0:02:36]} 9. Nc3 {[%clk 0:02:25]}  Bg7 {[%clk 0:02:27]} 10. f4 {[%clk 0:02:23]}  d6 {[%clk 0:02:26]} 11. Nf3 {[%clk 0:02:15]}  Bg4 {[%clk 0:02:15]} 12. Be2 {[%clk 0:02:14]}  Bxf3 {[%clk 0:01:41]} 13. Bxf3 {[%clk 0:02:15]}  c6 {[%clk 0:01:31]} 14. Qd4 {[%clk 0:01:57]}  Qb6 {[%clk 0:01:16]} 15. O-O-O {[%clk 0:01:55]}  O-O-O {[%clk 0:01:13]} 16. Ne4 {[%clk 0:01:25]}  Nxe4 {[%clk 0:01:05]} 17. Qxe4 {[%clk 0:00:49]}  e6 {[%clk 0:00:53]} 18. c3 {[%clk 0:00:41]}  dxe5 {[%clk 0:00:44]} 19. fxg5 {[%clk 0:00:41]}  Qc5 {[%clk 0:00:32]} 20. Rxd8+ {[%clk 0:00:18]}  Rxd8 {[%clk 0:00:33]} 21. Rd1 {[%clk 0:00:18]}  Rh8 {[%clk 0:00:31]} 22. Qd3 {[%clk 0:00:15]}  Qe7 {[%clk 0:00:31]} 23. g6 {[%clk 0:00:13]}  f5 {[%clk 0:00:30]} 24. e4 {[%clk 0:00:11]}  f4 {[%clk 0:00:20]} 25. Bg4 {[%clk 0:00:08]}  Kc7 {[%clk 0:00:19]} 26. Qc4 {[%clk 0:00:07]}  Re8 {[%clk 0:00:18]} 27. Kc2 {[%clk 0:00:06]}  Bh6 {[%clk 0:00:17]} 28. h3 {[%clk 0:00:06]}  f3 {[%clk 0:00:17]} 29. g3 {[%clk 0:00:06]}  hxg3 {[%clk 0:00:17]} 30. Qd3 {[%clk 0:00:06]}  f2 {[%clk 0:00:16]} 31. Qxg3 {[%clk 0:00:05]}  Qg5 {[%clk 0:00:14]} 32. Rf1 {[%clk 0:00:04]}  Rf8 {[%clk 0:00:14]} 33. Rxf2 {[%clk 0:00:03]}  Rxf2+ {[%clk 0:00:11]} 34. Qxf2 {[%clk 0:00:04]}  Qxg6 {[%clk 0:00:12]} 35. Qf3 {[%clk 0:00:04]}  Bf4 {[%clk 0:00:12]} 36. Kb3 {[%clk 0:00:03]}  Qe8 {[%clk 0:00:12]} 37. Qd3 {[%clk 0:00:03]}  Qe7 {[%clk 0:00:12]} 38. Qc4 {[%clk 0:00:03]}  Kd6 {[%clk 0:00:11]} 39. Qb4+ {[%clk 0:00:03]}  Kd7 {[%clk 0:00:12]} 40. Qxb7+ {[%clk 0:00:03]}  Ke8 {[%clk 0:00:12]} 41. Qxc6+ {[%clk 0:00:03]}  Kf7 {[%clk 0:00:13]} 42. Qxe6+ {[%clk 0:00:04]}  Qxe6+ {[%clk 0:00:13]} 43. Bxe6+ {[%clk 0:00:05]}  Kxe6 {[%clk 0:00:14]} 44. Kc4 {[%clk 0:00:05]}  Kd6 {[%clk 0:00:11]} 45. Kb5 {[%clk 0:00:05]}  Bg3 {[%clk 0:00:11]} 46. c4 {[%clk 0:00:05]}  a6+ {[%clk 0:00:08]} 47. Kxa6 {[%clk 0:00:05]}  Kc5 {[%clk 0:00:09]} 48. b3 {[%clk 0:00:05]}  Kd4 {[%clk 0:00:08]} 49. Kb5 {[%clk 0:00:05]}  Kxe4 {[%clk 0:00:09]} 50. c5 {[%clk 0:00:05]}  Kd5 {[%clk 0:00:09]} 51. b4 {[%clk 0:00:05]}  e4 {[%clk 0:00:10]} 52. a4 {[%clk 0:00:04]}  e3 {[%clk 0:00:11]} 53. a5 {[%clk 0:00:04]}  e2 {[%clk 0:00:11]} 54. a6 {[%clk 0:00:05]}  e1=Q {[%clk 0:00:12]} 55. a7 {[%clk 0:00:06]}  Qe8+ {[%clk 0:00:11]} 56. Kb6 {[%clk 0:00:06]}  Qa8 {[%clk 0:00:12]} 57. b5 {[%clk 0:00:06]}  Bf2 {[%clk 0:00:12]} 58. Ka6 {[%clk 0:00:05]}  Bxc5 {[%clk 0:00:13]} 59. b6 {[%clk 0:00:06]}  Bxb6 {[%clk 0:00:13]} 60. Kxb6 {[%clk 0:00:06]}  Kd6 {[%clk 0:00:13]} 61. h4 {[%clk 0:00:07]}  Qc6+ {[%clk 0:00:13]} 62. Ka5 {[%clk 0:00:06]}  Qb7 {[%clk 0:00:13]} 63. h5 {[%clk 0:00:05]}  Qxa7+ {[%clk 0:00:13]} 64. Kb5 {[%clk 0:00:06]}  Qc7 {[%clk 0:00:13]} 0-1


[Site "https://www.chess.com"]

[Event "Titled Tuesday Blitz February 28 Early 2023"]
[White "Pajeken, Jakob Leon"]
[Black "Nissinen, Niilo Man"]
[WhiteFideId "12942839"]
[BlackFideId "30950767"]
[WhiteElo "2414"]
[BlackElo "1957"]
[Result "0-1"]
[Round "01"]
[TimeControl "180+2"]
[Date "2023.02.28"]
[WhiteClock "0:02:04"]
[BlackClock "0:01:10"]

1. Nf3 {[%clk 0:02:55]}  Nf6 {[%clk 0:02:59]} 2. c4 {[%clk 0:02:55]}  c5 {[%clk 0:02:57]} 3. e3 {[%clk 0:02:55]}  Nc6 {[%clk 0:02:56]} 4. d4 {[%clk 0:02:55]}  cxd4 {[%clk 0:02:51]} 5. exd4 {[%clk 0:02:56]}  d5 {[%clk 0:02:51]} 6. h3 {[%clk 0:02:55]}  g6 {[%clk 0:02:49]} 7. Nc3 {[%clk 0:02:52]}  Bg7 {[%clk 0:02:48]} 8. a3 {[%clk 0:02:52]}  O-O {[%clk 0:02:46]} 9. c5 {[%clk 0:02:52]}  Ne4 {[%clk 0:02:41]} 10. Bb5 {[%clk 0:02:47]}  Nxc3 {[%clk 0:02:25]} 11. bxc3 {[%clk 0:02:48]}  Qa5 {[%clk 0:02:25]} 12. Bxc6 {[%clk 0:02:44]}  bxc6 {[%clk 0:02:26]} 13. Bd2 {[%clk 0:02:42]}  Ba6 {[%clk 0:02:26]} 14. c4 {[%clk 0:02:38]}  Qc7 {[%clk 0:02:18]} 15. cxd5 {[%clk 0:02:38]}  cxd5 {[%clk 0:02:11]} 16. Qa4 {[%clk 0:02:38]}  Bc4 {[%clk 0:02:05]} 17. Qa5 {[%clk 0:02:30]}  Qc8 {[%clk 0:02:01]} 18. Bc3 {[%clk 0:02:24]}  Qf5 {[%clk 0:01:57]} 19. O-O-O {[%clk 0:02:20]}  Bh6+ {[%clk 0:01:21]} 20. Bd2 {[%clk 0:02:20]}  Rab8 {[%clk 0:01:15]} 21. Qb4 {[%clk 0:02:03]}  Rxb4 {[%clk 0:01:13]} 22. axb4 {[%clk 0:02:04]}  Bb3 {[%clk 0:01:10]} 0-1


[Site "https://www.chess.com"]

[Event "Titled Tuesday Blitz February 28 Early 2023"]
[White "Saravana, Krishnan P."]
[Black "EdmundPlayer"]
[WhiteFideId "5018382"]
[WhiteElo "2189"]
[BlackElo "2225"]
[Result "1-0"]
[Round "01"]
[TimeControl "180+2"]
[Date "2023.02.28"]
[WhiteClock "0:00:26"]
[BlackClock "0:00:05"]

1. e4 {[%clk 0:03:00]}  e6 {[%clk 0:02:59]} 2. d4 {[%clk 0:02:59]}  d5 {[%clk 0:02:59]} 3. Nd2 {[%clk 0:02:59]}  h6 {[%clk 0:02:51]} 4. Bd3 {[%clk 0:02:49]}  c5 {[%clk 0:02:49]} 5. exd5 {[%clk 0:02:40]}  exd5 {[%clk 0:02:42]} 6. Qe2+ {[%clk 0:02:37]}  Qe7 {[%clk 0:02:36]} 7. dxc5 {[%clk 0:02:22]}  Qxe2+ {[%clk 0:02:35]} 8. Nxe2 {[%clk 0:02:22]}  Bxc5 {[%clk 0:02:36]} 9. Nb3 {[%clk 0:02:21]}  Bb6 {[%clk 0:02:33]} 10. Ned4 {[%clk 0:02:12]}  Ne7 {[%clk 0:02:11]} 11. Be3 {[%clk 0:02:07]}  Nbc6 {[%clk 0:02:06]} 12. c3 {[%clk 0:02:06]}  Nxd4 {[%clk 0:02:04]} 13. Bxd4 {[%clk 0:02:06]}  O-O {[%clk 0:01:57]} 14. O-O {[%clk 0:02:01]}  Bc7 {[%clk 0:01:52]} 15. Rfe1 {[%clk 0:01:59]}  Nc6 {[%clk 0:01:46]} 16. Bc5 {[%clk 0:01:58]}  Rd8 {[%clk 0:01:45]} 17. Nd4 {[%clk 0:01:58]}  Ne5 {[%clk 0:01:42]} 18. Bb5 {[%clk 0:01:51]}  Bd7 {[%clk 0:01:26]} 19. Rad1 {[%clk 0:01:35]}  a6 {[%clk 0:01:05]} 20. Bxd7 {[%clk 0:01:29]}  Rxd7 {[%clk 0:01:05]} 21. Nf5 {[%clk 0:01:28]}  Rad8 {[%clk 0:00:50]} 22. Bd4 {[%clk 0:01:24]}  f6 {[%clk 0:00:46]} 23. f4 {[%clk 0:01:23]}  Nc4 {[%clk 0:00:38]} 24. b3 {[%clk 0:01:21]}  Nb6 {[%clk 0:00:34]} 25. g3 {[%clk 0:01:18]}  Kf7 {[%clk 0:00:33]} 26. Kg2 {[%clk 0:01:15]}  Nc8 {[%clk 0:00:33]} 27. Rd3 {[%clk 0:01:12]}  Nd6 {[%clk 0:00:32]} 28. Nxd6+ {[%clk 0:01:09]}  Bxd6 {[%clk 0:00:31]} 29. Red1 {[%clk 0:01:09]}  Re7 {[%clk 0:00:30]} 30. Kf3 {[%clk 0:01:06]}  Rde8 {[%clk 0:00:29]} 31. R1d2 {[%clk 0:01:07]}  b5 {[%clk 0:00:21]} 32. Bf2 {[%clk 0:01:05]}  Ba3 {[%clk 0:00:14]} 33. Rxd5 {[%clk 0:01:04]}  Bc1 {[%clk 0:00:14]} 34. R2d3 {[%clk 0:01:01]}  Re2 {[%clk 0:00:13]} 35. Rd7+ {[%clk 0:01:00]}  Kg6 {[%clk 0:00:14]} 36. Rd1 {[%clk 0:00:51]}  Bb2 {[%clk 0:00:09]} 37. Rc7 {[%clk 0:00:45]}  Rc2 {[%clk 0:00:06]} 38. Rdd7 {[%clk 0:00:44]}  Rg8 {[%clk 0:00:03]} 39. c4 {[%clk 0:00:36]}  bxc4 {[%clk 0:00:02]} 40. Rxc4 {[%clk 0:00:35]}  Rxc4 {[%clk 0:00:02]} 41. bxc4 {[%clk 0:00:35]}  Rc8 {[%clk 0:00:03]} 42. c5 {[%clk 0:00:35]}  Ba3 {[%clk 0:00:02]} 43. Rd5 {[%clk 0:00:33]}  Kf7 {[%clk 0:00:03]} 44. f5 {[%clk 0:00:33]}  Ke7 {[%clk 0:00:03]} 45. Ke4 {[%clk 0:00:33]}  Rc6 {[%clk 0:00:03]} 46. Kd4 {[%clk 0:00:33]}  a5 {[%clk 0:00:04]} 47. Kc4 {[%clk 0:00:33]}  Bb2 {[%clk 0:00:04]} 48. Kb5 {[%clk 0:00:32]}  Rc8 {[%clk 0:00:04]} 49. c6 {[%clk 0:00:33]}  Be5 {[%clk 0:00:03]} 50. Bc5+ {[%clk 0:00:32]}  Ke8 {[%clk 0:00:02]} 51. Bb6 {[%clk 0:00:31]}  Rb8 {[%clk 0:00:02]} 52. Kxa5 {[%clk 0:00:30]}  Ra8+ {[%clk 0:00:03]} 53. Kb5 {[%clk 0:00:28]}  Rxa2 {[%clk 0:00:04]} 54. c7 {[%clk 0:00:28]}  Rc2 {[%clk 0:00:04]} 55. Be3 {[%clk 0:00:27]}  Rxc7 {[%clk 0:00:04]} 56. Bb6 {[%clk 0:00:27]}  Rb7 {[%clk 0:00:04]} 57. Kc6 {[%clk 0:00:26]}  Rd7 {[%clk 0:00:05]} 58. Rxd7 {[%clk 0:00:26]} 1-0


[Site "https://www.chess.com"]